fUST/lending_fUST_20240326
["ID","MTS","AMOUNT","RATE_DAILY","PERIOD"]
[320585493,1711459840983,-479.536245,0.00019866,2]
[320585495,1711459840992,-479.536245,0.00019866,2]
[320585497,1711459841001,-500.0,0.00019866,2]
[320585499,1711459841010,-479.536245,0.00019866,2]
[320585501,1711459841020,-479.536245,0.00019866,2]
[320585502,1711459841029,-479.536245,0.00019866,2]
[320585503,1711459841038,-479.536245,0.00019866,2]
[320585504,1711459841047,-500.0,0.00019866,2]
[320585505,1711459841056,-995.79,0.00019866,2]
[320585507,1711459841065,-500.0,0.00019866,2]
[320585508,1711459841074,-500.0,0.00019866,2]
[320585509,1711459841084,-500.0,0.00019866,2]
[320585510,1711459841093,-5113.88,0.00019866,2]
[320585511,1711459841101,-500.0,0.00019866,2]
[320585512,1711459841110,-609.41665786,0.00019866,2]
[320585513,1711459841120,-500.0,0.00019866,2]
[320585514,1711459841129,-151.0,0.00019866,2]
[320585515,1711459841139,-151.0,0.00019866,2]
[320585516,1711459841151,-153.604385,0.00019866,2]
[320585517,1711459841160,-500.0,0.00019866,2]
[320585518,1711459841169,-500.0,0.00019866,2]
[320585519,1711459841179,-1078.29,0.00019866,2]
[320585520,1711459841189,-906.68,0.00019866,2]
[320585521,1711459841198,-570.73,0.00019866,2]
[320585522,1711459841207,-500.0,0.00019866,2]
[320585523,1711459841216,-500.0,0.00019866,2]
[320585524,1711459841226,-702.84,0.00019866,2]
[320585525,1711459841235,-508.78073813,0.00019866,2]
[320585526,1711459841243,-592.64,0.00019866,2]
[320585527,1711459841252,-500.0,0.00019866,2]
[320585528,1711459841261,-605.58,0.00019866,2]
[320585529,1711459841271,-421.7926934,0.00019866,2]
[320585530,1711459841280,-500.0,0.00019866,2]
[320585531,1711459841289,-514.59346189,0.00019866,2]
[320585532,1711459841299,-500.0,0.00019866,2]
[320585533,1711459841308,-500.0,0.00019866,2]
[320585534,1711459841317,-194.78213072,0.00019866,2]
[320585535,1711459841327,-503.29706824,0.00019866,2]
[320585536,1711459841336,-500.0,0.00019866,2]
[320585537,1711459841347,-500.0,0.00019866,2]
[320585538,1711459841356,-500.0,0.00019866,2]
[320585539,1711459841365,-500.0,0.00019866,2]
[320585540,1711459841374,-500.0,0.00019866,2]
[320585541,1711459841383,-751.14586,0.00019866,2]
[320585542,1711459841393,-751.14586,0.00019866,2]
[320585543,1711459841403,-751.14586,0.00019866,2]
[320585544,1711459841412,-751.14586,0.00019866,2]
[320585545,1711459841421,-225.55307347,0.00019866,2]
[320585546,1711459841430,-500.0,0.00019866,2]
[320585547,1711459841440,-751.14586,0.00019866,2]
[320585548,1711459841449,-751.14586,0.00019866,2]
[320585549,1711459841458,-751.14586,0.00019866,2]
[320585550,1711459841467,-751.14586,0.00019866,2]
[320585551,1711459841477,-500.0,0.00019866,2]
[320585552,1711459841486,-500.0,0.00019866,2]
[320585553,1711459841495,-500.0,0.00019866,2]
[320585554,1711459841504,-500.0,0.00019866,2]
[320585555,1711459841513,-500.0,0.00019866,2]
[320585556,1711459841524,-500.0,0.00019866,2]
[320585557,1711459841534,-500.0,0.00019866,2]
[320585558,1711459841544,-151.715822,0.00019866,2]
[320585559,1711459841554,-500.0,0.00019866,2]
[320585560,1711459841564,-555.96,0.00019866,2]
[320585561,1711459841574,-830.8,0.00019866,2]
[320585562,1711459841583,-500.0,0.00019866,2]
[320585563,1711459841592,-584.91811068,0.00019866,2]
[320585564,1711459841601,-151.0,0.00019866,2]
[320585565,1711459841610,-151.0,0.00019866,2]
[320585566,1711459841619,-500.0,0.00019866,2]
[320585567,1711459841629,-1806.310367,0.00019866,2]
[320585568,1711459841638,-1806.310367,0.00019866,2]
[320585569,1711459841648,-1806.310367,0.00019866,2]
[320585570,1711459841657,-1806.310367,0.00019866,2]
[320585571,1711459841666,-1806.310367,0.00019866,2]
[320585572,1711459841675,-1806.310367,0.00019866,2]
[320585573,1711459841685,-500.0,0.00019866,2]
[320585574,1711459841694,-1806.310367,0.00019866,2]
[320585575,1711459841703,-1806.310367,0.00019866,2]
[320585576,1711459841713,-500.0,0.00019866,2]
[320585577,1711459841722,-500.0,0.00019866,2]
[320585578,1711459841732,-708.53,0.00019866,2]
[320585579,1711459841741,-500.0,0.00019866,2]
[320585580,1711459841750,-642.29286758,0.00019866,2]
[320585581,1711459841759,-221.42368717,0.00019866,2]
[320585582,1711459841770,-500.0,0.00019866,2]
[320585583,1711459841780,-500.0,0.00019866,2]
[320585584,1711459841789,-500.0,0.00019866,2]
[320585585,1711459841799,-2838.69,0.00019866,2]
[320585586,1711459841808,-2838.69,0.00019866,2]
[320585587,1711459841816,-204.166573,0.00019866,2]
[320585588,1711459841825,-204.166573,0.00019866,2]
[320585589,1711459841836,-204.166573,0.00019866,2]
[320585590,1711459841846,-204.166573,0.00019866,2]
[320585591,1711459841856,-204.166573,0.00019866,2]
[320585592,1711459841867,-204.166573,0.00019866,2]
[320585593,1711459841876,-204.166573,0.00019866,2]
[320585594,1711459841885,-204.166573,0.00019866,2]
[320585595,1711459841894,-500.0,0.00019866,2]
[320585596,1711459841904,-682.37,0.00019866,2]
[320585597,1711459841913,-500.0,0.00019866,2]
[320585598,1711459841922,-500.0,0.00019866,2]
[320585599,1711459841932,-500.0,0.00019866,2]
[320585600,1711459841941,-500.0,0.00019866,2]
[320585601,1711459841950,-501.36964236,0.00019866,2]
[320585602,1711459841959,-500.0,0.00019866,2]
[320585603,1711459841969,-500.0,0.00019866,2]
[320585604,1711459841978,-3646.01,0.00019866,2]
[320585605,1711459841987,-500.0,0.00019866,2]
[320585606,1711459841997,-809.17,0.00019866,2]
[320585607,1711459842006,-724.06,0.00019866,2]
[320585608,1711459842015,-151.0,0.00019866,2]
[320585609,1711459842026,-151.0,0.00019866,2]
[320585610,1711459842035,-151.0,0.00019866,2]
[320585611,1711459842044,-151.0,0.00019866,2]
[320585612,1711459842054,-151.0,0.00019866,2]
[320585613,1711459842063,-151.0,0.00019866,2]
[320585614,1711459842072,-151.0,0.00019866,2]
[320585615,1711459842082,-151.0,0.00019866,2]
[320585616,1711459842091,-500.0,0.00019866,2]
[320585617,1711459842100,-500.0,0.00019866,2]
[320585618,1711459842109,-500.0,0.00019866,2]
[320585619,1711459842119,-500.0,0.00019866,2]
[320585620,1711459842129,-151.0,0.00019866,2]
[320585621,1711459842143,-151.0,0.00019866,2]
[320585622,1711459842152,-151.0,0.00019866,2]
[320585623,1711459842161,-151.0,0.00019866,2]
[320585624,1711459842170,-164.971838,0.00019866,2]
[320585625,1711459842180,-500.0,0.00019866,2]
[320585626,1711459842189,-1831.32,0.00019866,2]
[320585628,1711459842198,-164.01092836,0.00019866,2]
[320585629,1711459842207,-500.0,0.00019866,2]
[320585630,1711459842217,-37277.39,0.00019866,2]
[320585631,1711459842227,-501.18247295,0.00019866,2]
[320585632,1711459842237,-500.0,0.00019866,2]
[320585633,1711459842246,-500.0,0.00019866,2]
[320585634,1711459842255,-500.0,0.00019866,2]
[320585635,1711459842265,-484.2695505,0.00019866,2]
[320585636,1711459842278,-500.0,0.00019866,2]
[320585637,1711459842288,-572.19367687,0.00019866,2]
[320585638,1711459842297,-500.0,0.00019866,2]
[320585639,1711459842307,-570.38,0.00019866,2]
[320585640,1711459842316,-500.0,0.00019866,2]
[320585641,1711459842325,-610.66,0.00019866,2]
[320585642,1711459842335,-500.0,0.00019866,2]
[320585643,1711459842344,-500.0,0.00019866,2]
[320585644,1711459842353,-500.0,0.00019867,2]
[320585646,1711459842363,-500.0,0.00019867,2]
[320585647,1711459842372,-500.0,0.00019867,2]
[320585648,1711459842381,-500.0,0.00019867,2]
[320585649,1711459842390,-500.0,0.00019867,2]
[320585650,1711459842400,-500.0,0.00019867,2]
[320585651,1711459842409,-500.0,0.00019867,2]
[320585652,1711459842418,-500.0,0.00019867,2]
[320585653,1711459842428,-500.0,0.00019867,2]
[320585654,1711459842437,-500.0,0.00019867,2]
[320585655,1711459842446,-500.0,0.00019867,2]
[320585656,1711459842456,-189.88034434,0.00019867,2]
[320585657,1711459842465,-500.0,0.00019867,2]
[320585659,1711459842475,-210.37888466,0.00019867,2]
[320585661,1711459842484,-500.0,0.00019867,2]
[320585662,1711459842494,-500.0,0.00019867,2]
[320585664,1711459842503,-500.0,0.00019867,2]
[320585666,1711459842512,-500.0,0.00019867,2]
[320585668,1711459842523,-500.0,0.00019867,2]
[320585679,1711459842604,-500.0,0.00019867,2]
[320585681,1711459842623,-536.11,0.00019867,2]
[320585683,1711459842632,-500.0,0.00019867,2]
[320585685,1711459842641,-500.0,0.00019867,2]
[320585687,1711459842650,-503.79,0.00019867,2]
[320585689,1711459842660,-500.77366085,0.00019867,2]
[320585690,1711459842670,-500.0,0.00019867,2]
[320585692,1711459842679,-500.0,0.00019867,2]
[320585694,1711459842688,-500.0,0.00019867,2]
[320585696,1711459842697,-549.6,0.00019867,2]
[320585698,1711459842707,-500.0,0.00019867,2]
[320585700,1711459842716,-500.0,0.00019867,2]
[320585702,1711459842725,-500.0,0.00019867,2]
[320585704,1711459842734,-500.0,0.00019867,2]
[320585706,1711459842743,-500.0,0.00019867,2]
[320585708,1711459842752,-299.48803373,0.00019867,2]
[320585710,1711459842761,-500.0,0.00019867,2]
[320585712,1711459842771,-500.0,0.00019867,2]
[320585714,1711459842781,-500.0,0.00019867,2]
[320585716,1711459842790,-500.0,0.00019867,2]
[320585718,1711459842799,-500.0,0.00019867,2]
[320585720,1711459842808,-500.0,0.00019867,2]
[320585721,1711459842817,-500.0,0.00019867,2]
[320585723,1711459842826,-775.77,0.00019867,2]
[320585725,1711459842835,-500.0,0.00019867,2]
[320585727,1711459842844,-500.0,0.00019867,2]
[320585729,1711459842853,-500.0,0.00019867,2]
[320585731,1711459842862,-500.0,0.00019867,2]
[320585733,1711459842871,-500.0,0.00019867,2]
[320585735,1711459842880,-500.0,0.00019867,2]
[320585737,1711459842889,-500.0,0.00019867,2]
[320585739,1711459842898,-500.0,0.00019867,2]
[320585741,1711459842907,-346.08,0.00019867,2]
[320585743,1711459842916,-346.08,0.00019867,2]
[320585745,1711459842925,-501.23648537,0.00019867,2]
[320585747,1711459842935,-466.12113776,0.00019867,2]
[320585749,1711459842949,-500.0,0.00019867,2]
[320585751,1711459842958,-500.0,0.00019867,2]
[320585753,1711459842967,-500.0,0.00019867,2]
[320585755,1711459842976,-500.0,0.00019867,2]
[320585757,1711459842985,-500.0,0.00019867,2]
[320585758,1711459842994,-500.0,0.00019867,2]
[320585759,1711459843003,-195.41618726,0.00019867,2]
[320585760,1711459843012,-1120.71,0.00019867,2]
[320585761,1711459843024,-500.0,0.00019867,2]
[320585763,1711459843033,-500.0,0.00019867,2]
[320585765,1711459843042,-500.0,0.00019867,2]
[320585767,1711459843052,-1037.4,0.00019867,2]
[320585768,1711459843061,-1037.4,0.00019867,2]
[320585769,1711459843071,-1037.4,0.00019867,2]
[320585770,1711459843080,-1042.63,0.00019867,2]
[320585771,1711459843089,-2215.54,0.00019867,2]
[320585773,1711459843099,-2588.52,0.00019867,2]
[320585775,1711459843108,-3516.93,0.00019867,2]
[320585776,1711459843117,-500.0,0.00019867,2]
[320585777,1711459843126,-500.0,0.00019867,2]
[320585778,1711459843138,-500.0,0.00019867,2]
[320585779,1711459843151,-500.0,0.00019867,2]
[320585780,1711459843160,-500.0,0.00019867,2]
[320585781,1711459843169,-479.536245,0.00019867,2]
[320585782,1711459843180,-479.536245,0.00019867,2]
[320585783,1711459843189,-479.536245,0.00019867,2]
[320585784,1711459843199,-479.536245,0.00019867,2]
[320585785,1711459843208,-479.536245,0.00019867,2]
[320585786,1711459843218,-479.536245,0.00019867,2]
[320585787,1711459843227,-751.14586,0.00019867,2]
[320585789,1711459843236,-751.14586,0.00019867,2]
[320585790,1711459843245,-751.14586,0.00019867,2]
[320585791,1711459843254,-751.14586,0.00019867,2]
[320585792,1711459843263,-1806.310367,0.00019867,2]
[320585793,1711459843275,-1806.310367,0.00019867,2]
[320585794,1711459843284,-1806.310367,0.00019867,2]
[320585795,1711459843293,-1806.310367,0.00019867,2]
[320585797,1711459843303,-500.0,0.00019867,2]
[320585798,1711459843312,-2838.69,0.00019867,2]
[320585800,1711459843322,-2838.69,0.00019867,2]
[320585801,1711459843331,-2838.69,0.00019867,2]
[320585803,1711459843340,-2838.69,0.00019867,2]
[320585805,1711459843349,-204.166573,0.00019867,2]
[320585806,1711459843358,-204.166573,0.00019867,2]
[320585807,1711459843367,-204.166573,0.00019867,2]
[320585808,1711459843376,-204.166573,0.00019867,2]
[320585809,1711459843385,-151.0,0.00019867,2]
[320585810,1711459843395,-151.0,0.00019867,2]
[320585811,1711459843404,-151.0,0.00019867,2]
[320585812,1711459843413,-298.493672,0.00019867,2]
[320585813,1711459843422,-500.0,0.00019868,2]
[320585814,1711459843432,-500.0,0.00019868,2]
[320585815,1711459843442,-500.0,0.00019868,2]
[320585816,1711459843452,-500.0,0.00019868,2]
[320585817,1711459843461,-500.0,0.00019868,2]
[320585818,1711459843470,-361.84278586,0.00019868,2]
[320585819,1711459843481,-500.0,0.00019868,2]
[320585821,1711459843490,-500.0,0.00019868,2]
[320585822,1711459843499,-346.08,0.00019868,2]
[320585823,1711459843508,-346.08,0.00019868,2]
[320585824,1711459843517,-346.08,0.00019868,2]
[320585825,1711459843527,-346.08,0.00019868,2]
[320585826,1711459843536,-346.08,0.00019868,2]
[320585827,1711459843545,-346.08,0.00019868,2]
[320585828,1711459843554,-1037.4,0.00019868,2]
[320585829,1711459843563,-1037.4,0.00019868,2]
[320585830,1711459843572,-1037.4,0.00019868,2]
[320585831,1711459843581,-500.0,0.00019868,2]
[320585832,1711459843590,-500.0,0.00019868,2]
[320585833,1711459843599,-500.0,0.00019868,2]
[320585834,1711459843607,-479.536245,0.00019868,2]
[320585835,1711459843616,-479.536245,0.00019868,2]
[320585836,1711459843625,-751.14586,0.00019868,2]
[320585837,1711459843634,-751.14586,0.00019868,2]
[320585838,1711459843643,-1806.310367,0.00019868,2]
[320585839,1711459843652,-1806.310367,0.00019868,2]
[320585840,1711459843661,-2838.69,0.00019868,2]
[320585841,1711459843670,-204.166573,0.00019868,2]
[320585842,1711459843679,-204.166573,0.00019868,2]
[320585843,1711459843689,-151.0,0.00019868,2]
[320585844,1711459843698,-500.0,0.00019869,2]
[320585845,1711459843707,-1037.4,0.00019869,2]
[320585846,1711459843716,-1037.4,0.00019869,2]
[320585847,1711459843725,-1037.4,0.00019869,2]
[320585848,1711459843734,-500.0,0.00019869,2]
[320585849,1711459843743,-500.0,0.00019869,2]
[320585850,1711459843753,-500.0,0.00019869,2]
[320585851,1711459843762,-751.14586,0.00019869,2]
[320585852,1711459843772,-751.14586,0.00019869,2]
[320585853,1711459843782,-2838.69,0.00019869,2]
[320585854,1711459843791,-346.08,0.0001987,2]
[320585855,1711459843800,-346.08,0.0001987,2]
[320585856,1711459843810,-1037.4,0.0001987,2]
[320585857,1711459843819,-500.0,0.0001987,2]
[320585858,1711459843828,-479.536245,0.0001987,2]
[320585859,1711459843837,-479.536245,0.0001987,2]
[320585860,1711459843846,-1259.52525825,0.00019871,2]
[320585861,1711459843856,-186.10441294,0.00019872,2]
[320585862,1711459843865,-790.84576606,0.00019872,2]
[320585863,1711459843874,-170.06336899,0.00019872,2]
[320585864,1711459843885,-500.0,0.00019872,2]
[320585865,1711459843895,-1037.4,0.00019872,2]
[320585866,1711459843904,-500.0,0.00019872,2]
[320585867,1711459843913,-2838.69,0.00019872,2]
[320585868,1711459843922,-151.0,0.00019872,2]
[320585869,1711459843931,-197.63605877,0.00019873,2]
[320585870,1711459843940,-346.08,0.00019873,2]
[320585871,1711459843949,-346.08,0.00019873,2]
[320585872,1711459843959,-1037.4,0.00019873,2]
[320585873,1711459843969,-1037.4,0.00019873,2]
[320585874,1711459843977,-1037.4,0.00019873,2]
[320585875,1711459843986,-1037.4,0.00019873,2]
[320585876,1711459843995,-1037.4,0.00019873,2]
[320585877,1711459844005,-1037.4,0.00019873,2]
[320585878,1711459844014,-1037.4,0.00019873,2]
[320585879,1711459844024,-1037.4,0.00019873,2]
[320585880,1711459844034,-1037.4,0.00019873,2]
[320585881,1711459844044,-1037.4,0.00019873,2]
[320585882,1711459844054,-1037.4,0.00019873,2]
[320585883,1711459844063,-1037.5371585,0.00019873,2]
[320585884,1711459844072,-500.0,0.00019873,2]
[320585885,1711459844081,-500.0,0.00019873,2]
[320585886,1711459844091,-500.0,0.00019873,2]
[320585887,1711459844100,-500.0,0.00019873,2]
[320585888,1711459844110,-500.0,0.00019873,2]
[320585889,1711459844119,-500.0,0.00019873,2]
[320585890,1711459844129,-500.0,0.00019873,2]
[320585891,1711459844147,-347.43437757,0.00019873,2]
[320585892,1711459844156,-479.536245,0.00019873,2]
[320585893,1711459844166,-479.536249,0.00019873,2]
[320585894,1711459844178,-751.14586,0.00019873,2]
[320585895,1711459844188,-751.14586,0.00019873,2]
[320585896,1711459844277,-751.14586,0.00019873,2]
[320585897,1711459844287,-751.145861,0.00019873,2]
[320585898,1711459844296,-1806.310367,0.00019873,2]
[320585899,1711459844306,-1806.310367,0.00019873,2]
[320585900,1711459844315,-1806.310367,0.00019873,2]
[320585901,1711459844324,-1806.310367,0.00019873,2]
[320585902,1711459844334,-2838.69,0.00019873,2]
[320585903,1711459844344,-2838.69,0.00019873,2]
[320585904,1711459844354,-2838.69,0.00019873,2]
[320585905,1711459844363,-2838.69,0.00019873,2]
[320585906,1711459844372,-2838.69,0.00019873,2]
[320585907,1711459844381,-2838.69,0.00019873,2]
[320585908,1711459844391,-2838.69,0.00019873,2]
[320585909,1711459844401,-2838.69,0.00019873,2]
[320585910,1711459844410,-2838.69,0.00019873,2]
[320585911,1711459844422,-204.166573,0.00019873,2]
[320585912,1711459844432,-204.166573,0.00019873,2]
[320585913,1711459844442,-204.166573,0.00019873,2]
[320585914,1711459844452,-204.166573,0.00019873,2]
[320585915,1711459844462,-151.0,0.00019873,2]
[320585916,1711459844472,-176112.25048534,0.00019874,2]
[320585917,1711459844494,-991.47179555,0.00019874,2]
[320585918,1711459844506,-453.44900236,0.00019874,2]
[320585919,1711459845002,-500.0,0.00019865,2]
[320585920,1711459845011,-542.21,0.00019865,2]
[320585921,1711459845021,-151.0,0.00019865,2]
[320585922,1711459845030,-151.0,0.00019866,2]
[320585923,1711459845038,-151.0,0.00019866,2]
[320585924,1711459845047,-151.0,0.00019866,2]
[320585925,1711459845056,-151.0,0.00019866,2]
[320585926,1711459845065,-3062.63299656,0.00019874,2]
[320586046,1711460044243,342.18582969,0.000189,2]
[320586047,1711460212761,205.60390967,0.00019675,2]
[320586062,1711460296002,23537.78597605,0.00019665,2]
[320586077,1711460936180,-785.18093439,0.00018799,2]
[320586078,1711460936215,-219.04477244,0.000188,2]
[320586079,1711460936243,-1995.77429317,0.00018899,2]
[320586080,1711460939813,-3000.0,0.00018899,2]
[320586081,1711460942571,-163.26583587,0.000188,2]
[320586082,1711460942598,-2836.73416413,0.00018899,2]
[320586083,1711460949014,-785.18093439,0.00018898,2]
[320586084,1711460949040,-84.81906561,0.00018899,2]
[320586136,1711461032129,-187.46769589,0.00018799,2]
[320586137,1711461032139,-1127.03206429,0.00018897,2]
[320586139,1711461032149,-931.6812301,0.00018898,2]
[320586141,1711461032159,-282.44273201,0.00018898,2]
[320586143,1711461032168,-2399.86627771,0.00018899,2]
[320586705,1711461046299,-284.71440487,0.00018899,2]
[320586707,1711461046312,-9872.91915617,0.00018899,2]
[320587889,1711461238974,-1699.5237975,0.00018543,2]
[320587899,1711461273222,-481.19925266,0.000188,2]
[320587900,1711461273246,-481.19925264,0.0001887,2]
[320587901,1711461273269,-139763.75048592,0.00018899,2]
[320587902,1711461273293,-301.50075334,0.000189,2]
[320587903,1711461273317,-481.19925264,0.00018939,2]
[320587904,1711461299205,-102792.02905458,0.00019,2]
[320587905,1711461299228,-481.19925264,0.00019009,2]
[320587906,1711461299250,-481.19925264,0.00019078,2]
[320587907,1711461309565,-493.81487992,0.00019178,2]
[320587908,1711461309591,-500.0,0.00019178,2]
[320587909,1711461309614,-1095.18,0.00019178,2]
[320587910,1711461309636,-296.00792132,0.00019178,2]
[320587911,1711461309659,-500.0,0.00019178,2]
[320587912,1711461309681,-1909.07,0.00019178,2]
[320587913,1711461309703,-1413.64,0.00019178,2]
[320587914,1711461309724,-500.0,0.00019178,2]
[320587915,1711461309745,-2692.04,0.00019178,2]
[320587916,1711461309767,-500.0,0.00019178,2]
[320587917,1711461309789,-500.0,0.00019178,2]
[320587918,1711461309810,-691.16,0.00019178,2]
[320587919,1711461309831,-1404.91,0.00019178,2]
[320587920,1711461309852,-500.0,0.00019178,2]
[320587921,1711461309875,-2261.7,0.00019178,2]
[320587922,1711461309896,-500.0,0.00019178,2]
[320587923,1711461309917,-500.0,0.00019178,2]
[320587924,1711461309941,-500.0,0.00019178,2]
[320587925,1711461309963,-5545.55,0.00019178,2]
[320587926,1711461309985,-500.0,0.00019178,2]
[320587927,1711461310006,-500.0,0.00019178,2]
[320587928,1711461310028,-500.0,0.00019178,2]
[320587929,1711461310054,-500.0,0.00019178,2]
[320587930,1711461310075,-865.27,0.00019178,2]
[320587931,1711461310097,-793.44,0.00019178,2]
[320587932,1711461310118,-500.0,0.00019178,2]
[320587933,1711461310139,-500.0,0.00019178,2]
[320587934,1711461310161,-2280.73,0.00019178,2]
[320587935,1711461310183,-12152.48,0.00019178,2]
[320587936,1711461310204,-272.7487476,0.00019178,2]
[320587937,1711461310226,-500.0,0.00019178,2]
[320587938,1711461310248,-793.67,0.00019178,2]
[320587939,1711461310270,-584.24,0.00019178,2]
[320587940,1711461312989,2815.48,0.00019178,2]
[320587941,1711461316908,500.0,0.00019178,2]
[320587942,1711461317278,502.9801643,0.00019178,2]
[320587943,1711461319723,702.61,0.00019178,2]
[320587944,1711461320660,1049.55,0.00019178,2]
[320587945,1711461329176,500.0,0.00019178,2]
[320587946,1711461330704,1354.74,0.00019178,2]
[320587947,1711461331239,500.0,0.00019178,2]
[320587948,1711461332118,500.0,0.00019178,2]
[320587949,1711461335257,871.14,0.00019178,2]
[320587950,1711461336251,1829.53,0.00019178,2]
[320587951,1711461342125,500.0,0.00019178,2]
[320587952,1711461346288,512.55728518,0.00019178,2]
[320587953,1711461347010,1378.93351769,0.000206,14]
[320587954,1711461347765,500.0,0.00019178,2]
[320587955,1711461348443,3507.75,0.00019178,2]
[320587956,1711461356600,2579.87,0.00019178,2]
[320587957,1711461363628,500.0,0.00019178,2]
[320587959,1711461365215,2605.93322634,0.00019086,2]
[320587960,1711461366439,500.0,0.00019178,2]
[320587961,1711461366824,500.0,0.00019178,2]
[320587962,1711461369610,500.0,0.00019178,2]
[320587963,1711461371218,912.35820256,0.000187,2]
[320587964,1711461372589,12138.91476274,0.00019178,2]
[320587965,1711461373459,155.39873963,0.00019,2]
[320587966,1711461376024,660.84,0.00019178,2]
[320587967,1711461376584,924.88102845,0.00018772,2]
[320587968,1711461385566,500.0,0.00019178,2]
[320587969,1711461386248,500.0,0.00019178,2]
[320587970,1711461391853,500.0,0.00019178,2]
[320587971,1711461392785,500.0,0.00019178,2]
[320587972,1711461395339,38146.73,0.00019178,2]
[320587973,1711461400065,500.0,0.00019178,2]
[320587974,1711461403226,500.0,0.00019178,2]
[320587975,1711461403693,1346.37,0.00019178,2]
[320588008,1711461695905,807.97582431,0.00017509,2]
[320588009,1711461695947,13656.19294859,0.00017509,2]
[320588010,1711461774823,500.0,0.00017509,2]
[320588011,1711461790795,500.0,0.00017509,2]
[320588012,1711461810776,500.0,0.00017509,2]
[320588013,1711461832790,500.0,0.00017509,2]
[320588014,1711461850763,500.0,0.00017509,2]
[320588015,1711461872749,500.0,0.00017509,2]
[320588018,1711461890958,500.0,0.00017509,2]
[320588020,1711461912768,500.0,0.00017509,2]
[320588021,1711461930761,500.0,0.00017509,2]
[320588022,1711461946749,500.0,0.00017509,2]
[320588024,1711461966781,500.0,0.00017509,2]
[320588026,1711461985233,500.0,0.00017509,2]
[320588027,1711462002775,500.0,0.00017509,2]
[320588028,1711462020769,500.0,0.00017509,2]
[320588036,1711462044811,500.0,0.00017509,2]
[320588037,1711462068773,500.0,0.00017509,2]
[320588038,1711462084782,500.0,0.00017509,2]
[320588039,1711462106800,500.0,0.00017509,2]
[320588040,1711462126773,500.0,0.00017509,2]
[320588041,1711462137969,400.78410139,0.00017509,2]
[320588042,1711462139623,155.0685218,0.00017509,2]
[320588043,1711462140681,45784.6320442,0.00017509,2]
[320588044,1711462143078,313.14814238,0.00017509,2]
[320588045,1711462146853,500.0,0.00017509,2]
[320588046,1711462154851,5171.44670874,0.00017334,2]
[320588047,1711462156075,432.72056074,0.00017509,2]
[320588048,1711462159141,313.14814238,0.00017509,2]
[320588052,1711462166809,500.0,0.00017509,2]
[320588053,1711462172843,4944.87054579,0.00017334,2]
[320588054,1711462174950,313.14814238,0.00017509,2]
[320588055,1711462175478,155.05426899,0.00017509,2]
[320588056,1711462177571,155.05426899,0.00017509,2]
[320588057,1711462178689,16444.93953166,0.00017509,2]
[320588060,1711462189466,155.05426899,0.00017509,2]
[320588061,1711462190784,500.0,0.00017509,2]
[320588062,1711462193564,219.28878073,0.00017509,2]
[320588063,1711462209606,155.05426899,0.00017509,2]
[320588064,1711462210872,500.0,0.00017509,2]
[320588065,1711462225480,155.05271792,0.00017509,2]
[320588066,1711462226811,500.0,0.00017509,2]